fUSD/lending_fUSD_20241001
["ID","MTS","AMOUNT","RATE_DAILY","PERIOD"]
[339655764,1727813470013,-500.0,0.000156,4]
[339655765,1727813470022,-500.0,0.000156,4]
[339655766,1727813470031,-500.0,0.000156,4]
[339655767,1727813470040,-500.0,0.000156,4]
[339655768,1727813470049,-500.0,0.000156,4]
[339655769,1727813470058,-500.0,0.000156,4]
[339655770,1727813470066,-500.0,0.000156,4]
[339655771,1727813470075,-500.0,0.000156,4]
[339655772,1727813470084,-500.0,0.000156,4]
[339655773,1727813470095,-3383.58368572,0.000157,2]
[339655774,1727813470104,-2019.44451285,0.0001575,2]
[339655775,1727813470114,-2346.58814164,0.0001575,2]
[339655776,1727813470123,-1000.0,0.00015753,2]
[339655777,1727813470132,-150.0,0.00015862,2]
[339655778,1727813470141,-303.54,0.00015935,2]
[339655779,1727813470150,-358.38,0.00015935,2]
[339655780,1727813470160,-1000.0,0.00015982,2]
[339655781,1727813470169,-3957.310723,0.00016,2]
[339655782,1727813470178,-275.85,0.00016,10]
[339655783,1727813470187,-658.42310538,0.00016,2]
[339655784,1727813470196,-268.53627531,0.00016,7]
[339655785,1727813470204,-563.86,0.00016,10]
[339655786,1727813470213,-407.86336349,0.00016,2]
[339655787,1727813470222,-308.65794699,0.00016,2]
[339655788,1727813470231,-900.0,0.00016,6]
[339655789,1727813470240,-514.0,0.00016,3]
[339655790,1727813470249,-1366.36,0.000161,2]
[339655791,1727813470259,-9999.99,0.00016116,2]
[339655792,1727813470268,-3000.0,0.000162,2]
[339655793,1727813470277,-1000.0,0.0001621,2]
[339655794,1727813470287,-150.0,0.00016222,2]
[339655795,1727813470298,-200.0,0.0001634,2]
[339655796,1727813470307,-247.32,0.00016438,2]
[339655797,1727813470316,-2500.0,0.00016438,2]
[339655798,1727813470325,-2500.0,0.00016438,2]
[339655799,1727813470334,-2500.0,0.00016438,2]
[339655800,1727813470345,-2500.0,0.00016438,2]
[339655801,1727813470356,-2500.0,0.00016438,2]
[339655802,1727813470366,-2500.0,0.00016438,2]
[339655803,1727813470375,-2500.0,0.00016438,2]
[339655804,1727813470385,-2500.0,0.00016438,2]
[339655805,1727813470394,-2500.0,0.00016438,2]
[339655806,1727813470403,-2500.0,0.00016438,2]
[339655807,1727813470413,-1809.08631392,0.00016438,2]
[339655808,1727813470422,-1000.0,0.00016438,2]
[339655809,1727813470431,-4000.0,0.00016438,2]
[339655810,1727813470441,-709.66,0.00016438,2]
[339655811,1727813470452,-300.0,0.00016438,2]
[339655812,1727813470461,-150.0,0.00016438,2]
[339655813,1727813470470,-514.0,0.000165,4]
[339655814,1727813470479,-247.32,0.00016575,2]
[339655815,1727813470490,-150.0,0.00016583,2]
[339655816,1727813470499,-1000.0,0.00016667,2]
[339655817,1727813470508,-190.64,0.00016669,2]
[339655818,1727813470517,-247.32,0.00016712,2]
[339655819,1727813470526,-217.44,0.00016712,2]
[339655820,1727813470536,-150.0,0.00016761,2]
[339655821,1727813470545,-150.0,0.00016761,2]
[339655822,1727813470555,-306.03,0.00016778,2]
[339655823,1727813470564,-302.63,0.00016778,2]
[339655824,1727813470573,-435.56,0.00016778,2]
[339655825,1727813470582,-322.65,0.00016778,2]
[339655826,1727813470592,-370.62,0.00016778,2]
[339655827,1727813470602,-247.32,0.00016849,2]
[339655828,1727813470610,-3168.65686081,0.0001688,2]
[339655829,1727813470620,-1000.0,0.00016895,2]
[339655830,1727813470634,-150.0,0.00016943,2]
[339655831,1727813470652,-247.32,0.00016986,2]
[339655832,1727813470667,-514.0,0.00017,4]
[339655833,1727813470686,-1200.0,0.00017,2]
[339655834,1727813470704,-247.32,0.00017123,2]
[339655835,1727813470720,-1000.0,0.00017123,2]
[339655836,1727813470737,-250.0,0.00017123,2]
[339655837,1727813470752,-247.32,0.0001726,2]
[339655838,1727813470766,-9270.0,0.000173,3]
[339655839,1727813470783,-150.0,0.00017304,2]
[339655840,1727813470803,-405.75,0.00017347,2]
[339655841,1727813470817,-1000.0,0.00017352,2]
[339655842,1727813470832,-247.32,0.00017397,2]
[339655843,1727813470849,-1366.36,0.000174,2]
[339655844,1727813470865,-13504.0,0.0001747,2]
[339655845,1727813470881,-5873.0,0.0001747,2]
[339655846,1727813470893,-150.0,0.0001747,2]
[339655847,1727813470908,-1148.0,0.0001747,2]
[339655848,1727813470923,-1082.0,0.0001747,2]
[339655849,1727813470940,-3000.0,0.000175,2]
[339655850,1727813470955,-514.0,0.000175,5]
[339655851,1727813470969,-247.32,0.00017534,2]
[339655852,1727813470985,-150.0,0.00017558,2]
[339655853,1727813470999,-150.0,0.0001757,2]
[339655854,1727813471014,-150.0,0.0001757,2]
[339655855,1727813471029,-1264.0,0.0001757,2]
[339655856,1727813471043,-1296.0,0.0001757,2]
[339655857,1727813471058,-449.0,0.0001757,2]
[339655858,1727813471073,-625.0,0.0001757,2]
[339655859,1727813471090,-559.0,0.0001757,2]
[339655860,1727813471104,-150.0,0.0001757,2]
[339655861,1727813471118,-810.0,0.0001757,2]
[339655862,1727813471133,-933.0,0.0001757,2]
[339655863,1727813471148,-1905.0,0.0001757,2]
[339655864,1727813471162,-554.0,0.0001757,2]
[339655865,1727813471176,-807.0,0.0001757,2]
[339655866,1727813471190,-3350.0,0.0001757,2]
[339655867,1727813471204,-1910.0,0.0001757,2]
[339655868,1727813471219,-1000.0,0.0001758,2]
[339655869,1727813471233,-150.0,0.00017582,2]
[339655870,1727813471247,-150.0,0.00017582,2]
[339655871,1727813471262,-1676.4,0.000176,7]
[339655872,1727813471278,-11513.0,0.000176,5]
[339655873,1727813471300,-361.38,0.000176,2]
[339655874,1727813471314,-150.0,0.00017664,2]
[339655875,1727813471328,-247.32,0.00017671,2]
[339655876,1727813471345,-247.32,0.00017808,2]
[339655877,1727813471366,-1000.0,0.00017808,2]
[339655878,1727813471381,-350.0,0.00017808,2]
[339655879,1727813471396,-6848.92743591,0.00017879,2]
[339655880,1727813471413,-247.32,0.00017945,2]
[339655881,1727813471429,-20054.3355221,0.00018,2]
[339655882,1727813471447,-1122.36973445,0.00018,2]
[339655883,1727813471465,-5568.87143717,0.00018,2]
[339655884,1727813471483,-1021.70182144,0.00018,2]
[339655885,1727813471500,-514.0,0.00018,5]
[339655886,1727813471518,-23320.33392555,0.00018,2]
[339655887,1727813471538,-150.0,0.00018025,2]
[339655888,1727813471556,-1000.0,0.00018037,2]
[339655889,1727813471573,-247.32,0.00018082,2]
[339655890,1727813471591,-1678.77578077,0.000181,2]
[339655891,1727813471608,-247.32,0.00018219,2]
[339655892,1727813471625,-1000.0,0.00018265,2]
[339655893,1727813471643,-247.32,0.00018356,2]
[339655894,1727813471660,-80711.22,0.00018356,2]
[339655895,1727813471676,-150.0,0.00018385,2]
[339655896,1727813471691,-247.32,0.00018493,2]
[339655897,1727813471707,-1000.0,0.00018493,2]
[339655898,1727813471723,-345.83321218,0.00018493,2]
[339655899,1727813471739,-514.0,0.000185,6]
[339655900,1727813471754,-1366.36,0.000186,2]
[339655901,1727813471771,-247.32,0.0001863,2]
[339655902,1727813471787,-1000.0,0.00018721,2]
[339655903,1727813471803,-150.0,0.00018746,2]
[339655904,1727813471819,-247.32,0.00018767,2]
[339655905,1727813471834,-3000.0,0.000189,2]
[339655906,1727813471862,-247.32,0.00018904,2]
[339655907,1727813471879,-1000.0,0.0001895,2]
[339655908,1727813471896,-12000.0,0.00019,2]
[339655909,1727813471911,-3100.0,0.00019,6]
[339655910,1727813471927,-514.0,0.00019,6]
[339655911,1727813471943,-1250.0,0.00019,2]
[339655912,1727813471959,-500.0,0.00019,2]
[339655913,1727813471975,-247.32,0.00019041,2]
[339655914,1727813471990,-150.0,0.00019106,2]
[339655915,1727813472008,-11756.63,0.00019151,2]
[339655916,1727813472024,-247.32,0.00019178,2]
[339655917,1727813472041,-1000.0,0.00019178,14]
[339655918,1727813472058,-22746.51,0.00019178,2]
[339655919,1727813472074,-552.2,0.00019233,2]
[339655920,1727813472089,-247.32,0.00019315,2]
[339655921,1727813472105,-1000.0,0.00019406,14]
[339655922,1727813472121,-247.32,0.00019452,2]
[339655923,1727813472136,-150.0,0.00019467,2]
[339655924,1727813472151,-514.0,0.000195,7]
[339655925,1727813472166,-247.41073728,0.00019589,2]
[339655926,1727813472181,-405.75,0.00019611,2]
[339655927,1727813472196,-1000.0,0.00019635,14]
[339655928,1727813472211,-217.44,0.00019658,2]
[339655929,1727813472227,-1154.38062212,0.000198,6]
[339655930,1727813472243,-150.0,0.00019827,2]
[339655931,1727813472260,-1000.0,0.00019863,14]
[339655932,1727813472275,-410.35475252,0.00019886,2]
[339655933,1727813472290,-428.61,0.0001989,2]
[339655934,1727813472304,-428.53,0.0001989,2]
[339655935,1727813472319,-4631.35563181,0.000199,3]
[339655936,1727813472334,-1366.36,0.000199,2]
[339655937,1727813472351,-14348.74354587,0.000199,2]
[339655938,1727813472372,-11583.79282949,0.000199,2]
[339655939,1727813472388,-11583.79282948,0.000199,2]
[339655940,1727813472408,-11583.79282948,0.000199,2]
[339655941,1727813472423,-1186.20995076,0.0002,4]
[339655942,1727813472439,-1374.67561482,0.0002,5]
[339655943,1727813472454,-294.69723126,0.0002,2]
[339655944,1727813472469,-3785.65064466,0.0002,2]
[339655945,1727813472483,-24725.84308091,0.0002,2]
[339655946,1727813472500,-2743.27086943,0.0002,7]
[339655947,1727813472514,-4050.0,0.0002,2]
[339655948,1727813472530,-1778.86982648,0.0002,10]
[339655949,1727813472546,-2000.0,0.0002,10]
[339655950,1727813472561,-5884.74499382,0.0002,7]
[339655951,1727813472577,-25410.65900234,0.0002,7]
[339655952,1727813472591,-194.0,0.0002,2]
[339655953,1727813472606,-194.0,0.0002,2]
[339655954,1727813472628,-200.0,0.0002,2]
[339655955,1727813472642,-188.0,0.0002,2]
[339655956,1727813472657,-150.0,0.0002,2]
[339655957,1727813472673,-10424.658011,0.0002,10]
[339655958,1727813472688,-5000.0,0.0002,7]
[339655959,1727813472965,-2000.0,0.0002,7]
[339655960,1727813472979,-5000.0,0.0002,7]
[339655961,1727813472989,-200.0,0.0002,10]
[339655962,1727813472999,-4981.7805069,0.0002,10]
[339655963,1727813473008,-465.67877599,0.0002,10]
[339655964,1727813473018,-60000.0,0.0002,5]
[339655965,1727813473027,-302.09159425,0.0002,5]
[339655966,1727813473037,-10066.45998583,0.0002,10]
[339655967,1727813473047,-1000.0,0.0002,7]
[339655968,1727813473056,-200.0,0.0002,2]
[339655969,1727813473065,-188.0,0.0002,2]
[339655970,1727813473074,-647.0,0.0002,2]
[339655971,1727813473083,-647.0,0.0002,2]
[339655972,1727813473093,-386.29069642,0.0002,14]
[339655973,1727813473102,-196.43933432,0.0002,14]
[339655974,1727813473114,-1194.91254849,0.0002,2]
[339655975,1727813473123,-22282.78090642,0.0002,2]
[339655976,1727813473132,-6653.0,0.0002,2]
[339655977,1727813473142,-779.0,0.0002,2]
[339655978,1727813473151,-200.0,0.0002,2]
[339655979,1727813473160,-186.13,0.0002,10]
[339655980,1727813473169,-900.0,0.0002,20]
[339655981,1727813473178,-858.0,0.0002,2]
[339655982,1727813473188,-858.0,0.0002,2]
[339655983,1727813473197,-1347.0,0.0002,2]
[339655984,1727813473206,-1527.09065852,0.0002,30]
[339655985,1727813473215,-475.54732202,0.0002,30]
[339655986,1727813473225,-1015.59577074,0.0002,2]
[339655987,1727813473234,-397.03032035,0.0002,2]
[339655988,1727813473243,-238.21819221,0.0002,2]
[339655989,1727813473253,-1667.22733992,0.0002,2]
[339655990,1727813473263,-1667.22733992,0.0002,2]
[339655991,1727813473272,-514.0,0.0002,7]
[339655992,1727813473281,-4293.14677872,0.0002,2]
[339655993,1727813473291,-4293.14677872,0.0002,2]
[339655994,1727813473301,-133800.0627512,0.0002,2]
[339655995,1727813473310,-150.0,0.0002,2]
[339655996,1727813473319,-133800.0627512,0.0002,2]
[339655997,1727813473329,-133800.0627512,0.0002,2]
[339655998,1727813473338,-150.0,0.0002,2]
[339655999,1727813473347,-150.0,0.0002,2]
[339656000,1727813473357,-10000.0,0.0002,2]
[339656001,1727813473369,-12840.11884476,0.0002,2]
[339656002,1727813473379,-13251.09440819,0.0002,2]
[339656003,1727813473388,-5492.69032249,0.0002,2]
[339656004,1727813473398,-3795.38078842,0.0002,2]
[339656005,1727813473407,-5214.59275457,0.0002,2]
[339656006,1727813473416,-1000.0,0.0002,2]
[339656007,1727813473425,-500.0,0.0002,2]
[339656008,1727813473436,-2500.0,0.0002,5]
[339656009,1727813473447,-152.0,0.00020007,3]
[339656010,1727813473457,-1000.0,0.00020091,14]
[339656011,1727813473466,-150.0,0.00020188,2]
[339656012,1727813473476,-152.0,0.00020267,4]
[339656013,1727813473486,-3000.0,0.000203,2]
[339656014,1727813473496,-1000.0,0.0002032,14]
[339656015,1727813473505,-151.0,0.00020448,2]
[339656016,1727813473514,-13504.0,0.0002047,2]
[339656017,1727813473525,-5873.0,0.0002047,2]
[339656018,1727813473535,-150.0,0.0002047,2]
[339656019,1727813473544,-367.473,0.0002047,2]
[339656020,1727813473553,-1082.0,0.0002047,2]
[339656021,1727813473563,-514.0,0.000205,8]
[339656022,1727813473572,-152.0,0.00020526,5]
[339656023,1727813473582,-271.96,0.00020548,2]
[339656024,1727813473591,-174.12,0.00020548,2]
[339656025,1727813473600,-20185.61,0.00020548,2]
[339656026,1727813473612,-1000.0,0.00020548,14]
[339656027,1727813473621,-150.0,0.00020548,2]
[339656028,1727813473630,-1264.0,0.0002057,2]
[339656029,1727813473640,-1296.0,0.0002057,2]
[339656030,1727813473649,-449.0,0.0002057,2]
[339656031,1727813473659,-625.0,0.0002057,2]
[339656032,1727813473668,-559.0,0.0002057,2]
[339656033,1727813473678,-810.0,0.0002057,2]
[339656034,1727813473688,-933.0,0.0002057,2]
[339656035,1727813473697,-1905.0,0.0002057,2]
[339656036,1727813473706,-554.0,0.0002057,2]
[339656037,1727813473716,-807.0,0.0002057,2]
[339656038,1727813473725,-3350.0,0.0002057,2]
[339656039,1727813473735,-1910.0,0.0002057,2]
[339656040,1727813473744,-1148.06196214,0.0002058,2]
[339656041,1727813473754,-1058.97519159,0.0002058,2]
[339656042,1727813473764,-1054.6697375,0.0002058,2]
[339656043,1727813473774,-1042.61752113,0.0002058,2]
[339656044,1727813473783,-1122.36685018,0.0002058,2]
[339656045,1727813473793,-1138.1001359,0.0002058,2]
[339656046,1727813473803,-150.0,0.00020732,2]
[339656047,1727813473812,-150.0,0.00020732,2]
[339656048,1727813473822,-150.0,0.00020732,2]
[339656049,1727813473831,-150.0,0.00020732,2]
[339656050,1727813473841,-150.0,0.00020732,2]
[339656051,1727813473851,-1000.0,0.00020776,14]
[339656052,1727813473864,-152.0,0.00020786,6]
[339656053,1727813473873,-2890.17197937,0.00020919,40]
[339656054,1727813473883,-20143.32427905,0.00021,4]
[339656055,1727813473892,-20142.79209718,0.00021,4]
[339656056,1727813473902,-20142.88698363,0.00021,4]
[339656057,1727813473912,-14808.08869908,0.00021,2]
[339656058,1727813473922,-2900.0,0.00021,10]
[339656059,1727813473932,-4602.15285498,0.00021,7]
[339656060,1727813473942,-226.45093011,0.00021,2]
[339656061,1727813473952,-900.0,0.00021,22]
[339656062,1727813473962,-156.194201,0.00021,40]
[339656063,1727813473972,-514.0,0.00021,9]
[339656064,1727813473981,-1300.0,0.00021,2]
[339656065,1727813473991,-10000.0,0.00021,2]
[339656066,1727813474000,-12839.0,0.00021,2]
[339656067,1727813474010,-13250.0,0.00021,2]
[339656068,1727813474020,-5492.0,0.00021,2]
[339656069,1727813474029,-3794.0,0.00021,2]
[339656070,1727813474038,-5214.0,0.00021,2]
[339656071,1727813474048,-1000.0,0.00021005,14]
[339656072,1727813474058,-152.0,0.00021045,7]
[339656073,1727813474069,-1500.0,0.00021189,2]
[339656074,1727813474078,-1000.0,0.00021233,14]
[339656075,1727813474088,-152.0,0.00021305,8]
[339656076,1727813474098,-150.0,0.00021313,15]
[339656077,1727813474107,-5924.58,0.0002137,2]
[339656078,1727813474120,-1011.95145548,0.00021384,2]
[339656079,1727813474129,-1366.36,0.000214,2]
[339656080,1727813474138,-2000.0,0.0002142,2]
[339656081,1727813474148,-200.0,0.0002142,2]
[339656082,1727813474157,-2000.0,0.0002142,2]
[339656083,1727813474166,-200.0,0.0002142,2]
[339656084,1727813474175,-800.0,0.00021425,2]
[339656085,1727813474185,-800.0,0.00021425,2]
[339656086,1727813474194,-1500.0,0.00021435,2]
[339656087,1727813474204,-1000.0,0.00021461,14]
[339656088,1727813474213,-514.0,0.000215,9]
[339656089,1727813474223,-1522.73625757,0.0002156,2]
[339656090,1727813474232,-358.13,0.0002156,2]
[339656091,1727813474241,-152.0,0.00021564,9]
[339656092,1727813474251,-3000.0,0.000216,2]
[339656093,1727813474260,-2000.0,0.00021634,2]
[339656094,1727813474269,-200.0,0.00021634,2]
[339656095,1727813474279,-2000.0,0.00021634,2]
[339656096,1727813474288,-200.0,0.00021634,2]
[339656097,1727813474297,-1000.0,0.00021689,14]
[339656098,1727813474306,-150.0,0.00021764,2]
[339656099,1727813474315,-150.0,0.00021764,2]
[339656100,1727813474324,-358.32,0.00021764,2]
[339656101,1727813474334,-152.0,0.00021824,10]
[339656102,1727813474343,-2000.0,0.00021851,2]
[339656103,1727813474353,-200.0,0.00021851,2]
[339656104,1727813474365,-405.75,0.00021875,2]
[339656105,1727813474383,-500.0,0.000219,2]
[339656106,1727813474392,-650.0,0.000219,2]
[339656107,1727813474404,-1500.0,0.000219,2]
[339656108,1727813474414,-200.0,0.000219,2]
[339656109,1727813474423,-152.13261434,0.000219,2]
[339656110,1727813474434,-4835.6,0.00021918,2]
[339656111,1727813474444,-166.36,0.00021918,2]
[339656112,1727813474456,-197.85096644,0.00021918,2]
[339656113,1727813474472,-1582.53,0.0002192,2]
[339656114,1727813474481,-1582.53,0.0002192,2]
[339656115,1727813474491,-1582.53,0.0002192,2]
[339656116,1727813474501,-1582.53,0.0002192,2]
[339656117,1727813474511,-1582.53,0.0002192,2]
[339656118,1727813474520,-1582.53,0.0002192,2]
[339656119,1727813474529,-1582.53,0.0002192,2]
[339656120,1727813474539,-1582.53,0.0002192,2]
[339656121,1727813474548,-1582.53,0.0002192,2]
[339656122,1727813474557,-1582.53,0.0002192,2]
[339656123,1727813474566,-7216.36261105,0.00021999,2]
[339656124,1727813474576,-10000.0,0.00022,5]
[339656125,1727813474585,-14514.53753886,0.00022,3]
[339656126,1727813474594,-242.68551923,0.00022,2]
[339656127,1727813474603,-746.14612207,0.00022,7]
[339656128,1727813474616,-1000.0,0.00022,12]
[339656129,1727813474626,-2900.0,0.00022,10]
[339656130,1727813474634,-7916.24052944,0.00022,15]
[339656131,1727813474644,-12000.0,0.00022,5]
[339656132,1727813474654,-3000.0,0.00022,10]
[339656133,1727813474663,-984.05308348,0.00022,2]
[339656134,1727813474673,-754.0,0.00022,2]
[339656135,1727813474684,-1130.82429127,0.00022,2]
[339656136,1727813474694,-900.0,0.00022,23]
[339656137,1727813474703,-2100.48382091,0.00022,3]
[339656138,1727813474712,-772.18083874,0.00022,5]
[339656139,1727813474721,-13385.6,0.00022,10]
[339656140,1727813474730,-150.0,0.00022,5]
[339656141,1727813474740,-500.0,0.00022,4]
[339656142,1727813474749,-500.0,0.00022,4]
[339656143,1727813474759,-500.0,0.00022,4]
[339656144,1727813474768,-1444.70452616,0.00022,2]
[339656145,1727813474778,-173.0,0.00022,2]
[339656146,1727813474787,-800.0,0.00022,2]
[339656147,1727813474797,-800.0,0.00022,2]
[339656148,1727813474806,-514.0,0.00022,10]
[339656149,1727813474816,-2000.0,0.00022,2]
[339656150,1727813474825,-200.0,0.00022,2]
[339656151,1727813474834,-800.0,0.00022,2]
[339656152,1727813474843,-173.0,0.00022,2]
[339656153,1727813474853,-1000.0,0.00022,2]
[339656154,1727813474865,-1000.0,0.00022,2]
[339656155,1727813474874,-1000.0,0.00022,2]
[339656156,1727813474883,-1000.0,0.00022,2]
[339656157,1727813474893,-1000.0,0.00022,2]
[339656158,1727813474902,-1000.0,0.00022,2]
[339656159,1727813474912,-1000.0,0.00022,2]
[339656160,1727813474922,-1000.0,0.00022,2]
[339656161,1727813474931,-1000.0,0.00022,2]
[339656162,1727813474941,-1000.0,0.00022,2]
[339656163,1727813474950,-1000.0,0.00022,2]
[339656164,1727813474959,-872.33455765,0.00022,2]
[339656165,1727813474969,-2000.0,0.0002202,120]
[339656166,1727813474979,-200.0,0.0002202,120]
[339656167,1727813474988,-2000.0,0.00022069,2]
[339656168,1727813474998,-200.0,0.00022069,2]
[339656169,1727813475008,-152.0,0.00022083,11]
[339656170,1727813475017,-795.63601966,0.000221,2]
[339656171,1727813475027,-227.61535134,0.0002211,2]
[339656172,1727813475037,-173.0,0.00022192,2]
[339656173,1727813475046,-200.0,0.0002222,2]
[339656174,1727813475056,-2000.0,0.0002229,2]
[339656175,1727813475065,-200.0,0.0002229,2]
[339656176,1727813475075,-152.0,0.00022343,12]
[339656177,1727813475084,-157.02,0.00022416,2]
[339656178,1727813475093,-200.0,0.00022442,2]
[339656179,1727813475103,-1000.0,0.00022466,2]
[339656180,1727813475115,-33572.22250084,0.000225,2]
[339656181,1727813475125,-2900.0,0.000225,15]
[339656182,1727813475134,-1000.0,0.000225,2]
[339656183,1727813475143,-1397.0,0.000225,14]
[339656184,1727813475152,-514.0,0.000225,10]
[339656185,1727813475163,-21363.96,0.00022562,2]
[339656186,1727813475172,-152.0,0.00022602,13]
[339656187,1727813475182,-217.44,0.00022603,2]
[339656188,1727813475191,-1366.36,0.000228,7]
[339656189,1727813475200,-152.0,0.00022862,14]
[339656190,1727813475210,-289.39649637,0.0002299,2]
[339656191,1727813475219,-320.0,0.00023,10]
[339656192,1727813475228,-3000.0,0.00023,10]
[339656193,1727813475238,-5329.13757799,0.00023,10]
[339656194,1727813475247,-900.0,0.00023,24]
[339656195,1727813475257,-2102.5940491,0.00023,120]
[339656196,1727813475266,-3000.0,0.00023,2]
[339656197,1727813475275,-514.0,0.00023,11]
[339656198,1727813475284,-1350.0,0.00023,2]
[339656199,1727813475293,-2000.0,0.00023009,120]
[339656200,1727813475302,-264.74500831,0.0002301,2]
[339656201,1727813475311,-173.0,0.00023014,2]
[339656202,1727813475320,-152.0,0.00023121,15]
[339656203,1727813475330,-49358.92726958,0.000232,2]
[339656204,1727813475339,-562.05140524,0.0002322,2]
[339656205,1727813475348,-358.38,0.00023227,2]
[339656206,1727813475357,-150.0,0.00023227,2]
[339656207,1727813475368,-1067.44792415,0.00023233,120]
[339656208,1727813475377,-753.88,0.00023265,2]
[339656209,1727813475386,-567.97,0.00023265,2]
[339656210,1727813475395,-152.0,0.00023381,16]
[339656211,1727813475404,-12067.155,0.0002347,2]
[339656212,1727813475413,-2427.341,0.0002347,2]
[339656213,1727813475422,-150.0,0.0002347,2]
[339656214,1727813475431,-1082.0,0.0002347,2]
[339656215,1727813475441,-514.0,0.000235,11]
[339656216,1727813475451,-1264.0,0.0002357,2]
[339656217,1727813475460,-1151.039,0.0002357,2]
[339656218,1727813475469,-437.649,0.0002357,2]
[339656219,1727813475479,-625.0,0.0002357,2]
[339656220,1727813475488,-559.0,0.0002357,2]
[339656221,1727813475497,-810.0,0.0002357,2]
[339656222,1727813475506,-933.0,0.0002357,2]
[339656223,1727813475516,-1905.0,0.0002357,2]
[339656224,1727813475697,-554.0,0.0002357,2]
[339656225,1727813475707,-807.0,0.0002357,2]
[339656226,1727813475716,-3350.0,0.0002357,2]
[339656227,1727813475726,-1910.0,0.0002357,2]
[339656228,1727813475737,-152.0,0.0002364,17]
[339656229,1727813475746,-152.0,0.000239,18]
[339656230,1727813475755,-1704.82632816,0.000239,120]
[339656231,1727813475765,-335304.0,0.00023922,2]
[339656232,1727813475774,-2000.0,0.00023997,120]
[339656233,1727813475784,-346421.40192485,0.00024,3]
[339656234,1727813475792,-499.08295679,0.00024,2]
[339656235,1727813475802,-966.07539877,0.00024,2]
[339656236,1727813475811,-300.64560273,0.00024,7]
[339656237,1727813475821,-1000.0,0.00024,7]
[339656238,1727813475829,-352.26,0.00024,7]
[339656239,1727813475838,-1000.0,0.00024,7]
[339656240,1727813475848,-900.0,0.00024,25]
[339656241,1727813475857,-6621.58299925,0.00024,2]
[339656242,1727813475868,-2417.27669889,0.00024,30]
[339656243,1727813475878,-2000.0,0.00024,120]
[339656244,1727813475887,-156.194201,0.00024,30]
[339656245,1727813475897,-514.0,0.00024,12]
[339656246,1727813475906,-150.0,0.00024038,2]
[339656247,1727813475915,-150.0,0.00024038,2]
[339656248,1727813475924,-150.0,0.00024038,2]
[339656249,1727813475933,-428.61,0.00024038,2]
[339656250,1727813475943,-150.0,0.00024038,2]
[339656251,1727813475952,-428.61,0.00024038,2]
[339656252,1727813475961,-425.38,0.00024038,2]
[339656253,1727813475971,-358.38,0.00024054,2]
[339656254,1727813475980,-358.38,0.00024054,2]
[339656255,1727813475989,-358.14,0.00024054,2]
[339656256,1727813475998,-3061.10331539,0.0002408,2]
[339656257,1727813476007,-405.75,0.00024139,2]
[339656258,1727813476016,-152.0,0.00024159,19]
[339656259,1727813476026,-178.0,0.00024164,2]
[339656260,1727813476035,-398.87886738,0.0002421,2]
[339656261,1727813476044,-3497.23361612,0.0002421,2]
[339656262,1727813476053,-1366.36,0.000244,7]
[339656263,1727813476062,-3000.0,0.000244,2]